fUST/lending_fUST_20240512
["ID","MTS","AMOUNT","RATE_DAILY","PERIOD"]
[326847021,1715509873028,-500.0,0.00059178,120]
[326847022,1715509873037,-652.77,0.00059178,120]
[326847023,1715509873047,-665.8,0.00059178,120]
[326847024,1715509873056,-500.0,0.00059178,30]
[326847025,1715509873065,-2405.12,0.00059178,120]
[326847026,1715509873074,-1296.67,0.00059178,120]
[326847027,1715509873084,-500.0,0.00059178,120]
[326847028,1715509873093,-515.15,0.00059178,120]
[326847029,1715509873103,-500.0,0.00059178,120]
[326847030,1715509873112,-1711.77,0.00059178,120]
[326847031,1715509873122,-500.0,0.00059178,120]
[326847032,1715509873132,-500.0,0.00059178,120]
[326847033,1715509873141,-634.68,0.00059178,120]
[326847034,1715509873150,-674.93,0.00059178,120]
[326847035,1715509873159,-500.0,0.00059178,120]
[326847036,1715509873168,-500.0,0.00059178,120]
[326847037,1715509873178,-669.18,0.00059178,120]
[326847038,1715509873189,-662.7,0.00059178,120]
[326847039,1715509873198,-672.84,0.00059178,120]
[326847040,1715509873208,-500.0,0.00059178,120]
[326847041,1715509873217,-500.0,0.00059178,120]
[326847042,1715509873226,-500.0,0.00059178,120]
[326847043,1715509873236,-500.0,0.00059178,120]
[326847044,1715509873245,-500.0,0.00059178,120]
[326847045,1715509873254,-500.0,0.00059178,120]
[326847046,1715509873263,-596.29634439,0.00059178,120]
[326847047,1715509873272,-500.0,0.00059178,120]
[326847048,1715509873282,-500.0,0.00059178,120]
[326847049,1715509873291,-500.0,0.00059178,120]
[326847050,1715509873301,-500.0,0.00059178,120]
[326847051,1715509873309,-1082.38,0.00059178,120]
[326847052,1715509873318,-500.0,0.00059178,120]
[326847053,1715509873327,-406.2486216,0.00059178,120]
[326847054,1715509873336,-2510.37,0.00059178,120]
[326847055,1715509873345,-498.10406581,0.00059178,120]
[326847056,1715509873354,-168.472602,0.00059178,120]
[326847057,1715509873363,-168.472602,0.00059178,120]
[326847058,1715509873373,-4167.16,0.00059178,120]
[326847059,1715509873383,-1216.89,0.00059178,7]
[326847060,1715509873392,-568.37,0.00059178,120]
[326847061,1715509873401,-500.0,0.00059178,120]
[326847062,1715509873410,-500.0,0.00059178,120]
[326847063,1715509873419,-500.0,0.00059178,120]
[326847064,1715509873428,-500.0,0.00059178,120]
[326847065,1715509873437,-634.17,0.00059178,120]
[326847066,1715509873446,-711.19,0.00059178,120]
[326847067,1715509873455,-645.64,0.00059178,120]
[326847068,1715509873464,-634.59,0.00059178,120]
[326847069,1715509873473,-522.61,0.00059178,120]
[326847070,1715509873483,-174.109258,0.00059178,120]
[326847071,1715509873492,-1199.73,0.00059178,120]
[326847072,1715509873501,-852.85,0.00059178,120]
[326847073,1715509873510,-500.0,0.00059178,120]
[326847074,1715509873519,-500.0,0.00059178,120]
[326847075,1715509873528,-625.2,0.00059178,120]
[326847076,1715509873538,-500.0,0.00059178,120]
[326847077,1715509873547,-500.0,0.00059178,120]
[326847078,1715509873556,-728.74,0.00059178,120]
[326847079,1715509873565,-501.04,0.00059178,120]
[326847080,1715509873574,-588.33,0.00059178,120]
[326847081,1715509873583,-500.0,0.00059178,120]
[326847082,1715509873592,-500.0,0.00059178,120]
[326847083,1715509873601,-1576.44,0.00059178,120]
[326847084,1715509873611,-500.0,0.00059178,120]
[326847085,1715509873707,-500.0,0.00059178,120]
[326847086,1715509873717,-500.0,0.00059178,120]
[326847087,1715509873727,-500.0,0.00059178,120]
[326847088,1715509873737,-642.78,0.00059178,120]
[326847089,1715509873747,-500.0,0.00059178,120]
[326847090,1715509873758,-1474.83,0.00059178,120]
[326847091,1715509873768,-500.0,0.00059178,120]
[326847092,1715509873778,-500.0,0.00059178,120]
[326847093,1715509873787,-500.0,0.00059178,120]
[326847094,1715509873797,-500.0,0.00059178,120]
[326847095,1715509873807,-1138.94,0.00059178,120]
[326847096,1715509873816,-500.0,0.00059178,120]
[326847097,1715509873826,-2052.53,0.00059178,120]
[326847098,1715509873835,-500.0,0.00059178,120]
[326847099,1715509873845,-3343.91,0.00059178,120]
[326847100,1715509873854,-500.0,0.00059178,120]
[326847101,1715509873863,-1280.34,0.00059178,120]
[326847102,1715509873875,-589.15,0.00059178,120]
[326847103,1715509873884,-990.89,0.00059178,120]
[326847104,1715509873894,-1022.63,0.00059178,120]
[326847105,1715509873904,-1377.96,0.00059178,120]
[326847106,1715509873913,-500.0,0.00059178,120]
[326847107,1715509873922,-849.72,0.00059178,120]
[326847108,1715509873932,-470.08927801,0.00059178,120]
[326847109,1715509873942,-151.0,0.00059178,120]
[326847110,1715509873951,-500.0,0.00059178,120]
[326847111,1715509873960,-439.73733899,0.00059178,120]
[326847112,1715509873969,-500.0,0.00059178,120]
[326847113,1715509873978,-500.0,0.00059178,120]
[326847114,1715509873987,-2169.41,0.00059178,120]
[326847115,1715509873996,-658.6,0.00059178,120]
[326847116,1715509874006,-926.02,0.00059178,120]
[326847117,1715509874016,-581.27443322,0.00059178,120]
[326847118,1715509874024,-500.0,0.00059178,120]
[326847119,1715509874034,-2031.16,0.00059178,120]
[326847120,1715509874043,-500.0,0.00059178,120]
[326847121,1715509874052,-1300.61,0.00059178,120]
[326847122,1715509874062,-4158.51,0.00059178,120]
[326847123,1715509874071,-500.0,0.00059178,120]
[326847124,1715509874080,-1707.07,0.00059178,120]
[326847125,1715509874089,-500.0,0.00059178,120]
[326847126,1715509874098,-520.7804193,0.00059178,120]
[326847127,1715509874107,-747.04,0.00059178,120]
[326847128,1715509874117,-500.0,0.00059178,120]
[326847129,1715509874130,-610.04,0.00059178,120]
[326847130,1715509874139,-500.0,0.00059178,120]
[326847131,1715509874148,-616.93,0.00059178,120]
[326847132,1715509874158,-555.14,0.00059178,120]
[326847133,1715509874166,-500.0,0.00059178,120]
[326847134,1715509874175,-500.0,0.00059178,120]
[326847135,1715509874185,-663.17,0.00059178,60]
[326847136,1715509874199,-1965.65,0.00059178,120]
[326847137,1715509874208,-500.0,0.00059178,120]
[326847138,1715509874217,-500.0,0.00059178,120]
[326847139,1715509874227,-1720.11,0.00059178,120]
[326847140,1715509874237,-500.0,0.00059178,120]
[326847141,1715509874246,-1258.86,0.00059178,7]
[326847142,1715509874255,-500.0,0.00059178,120]
[326847143,1715509874264,-531.16,0.00059178,120]
[326847144,1715509874276,-500.0,0.00059178,120]
[326847145,1715509874286,-500.0,0.00059178,120]
[326847146,1715509874295,-500.0,0.00059178,120]
[326847147,1715509874303,-1275.8,0.00059178,120]
[326847148,1715509874312,-1330.34,0.00059178,120]
[326847149,1715509874321,-500.0,0.00059178,120]
[326847150,1715509874330,-1477.44,0.00059178,120]
[326847151,1715509874339,-500.0,0.00059178,120]
[326847152,1715509874349,-500.0,0.00059178,120]
[326847153,1715509874357,-500.0,0.00059178,120]
[326847154,1715509874367,-500.0,0.00059178,120]
[326847155,1715509874379,-500.0,0.00059178,120]
[326847156,1715509874387,-1415.41,0.00059178,120]
[326847157,1715509874396,-500.0,0.00059178,120]
[326847158,1715509874405,-790.3,0.00059178,120]
[326847159,1715509874414,-500.0,0.00059178,120]
[326847160,1715509874423,-500.0,0.00059178,120]
[326847161,1715509874431,-1299.65,0.00059178,120]
[326847162,1715509874440,-631.96,0.00059178,120]
[326847163,1715509874449,-2939.68,0.00059178,21]
[326847164,1715509874458,-775.43,0.00059178,120]
[326847165,1715509874467,-500.0,0.00059178,120]
[326847166,1715509874477,-3584.43,0.00059178,120]
[326847167,1715509874485,-500.0,0.00059178,120]
[326847168,1715509874495,-500.0,0.00059178,120]
[326847169,1715509874504,-4428.92,0.00059178,120]
[326847170,1715509874513,-974.56,0.00059178,120]
[326847171,1715509874522,-500.0,0.00059178,120]
[326847172,1715509874531,-1052.97,0.00059178,120]
[326847173,1715509874539,-721.17,0.00059178,120]
[326847174,1715509874549,-661.04,0.00059178,120]
[326847175,1715509874557,-360.3652164,0.00059178,120]
[326847176,1715509874566,-625.85,0.00059178,120]
[326847177,1715509874575,-980.18,0.00059178,120]
[326847178,1715509874584,-614.26,0.00059178,120]
[326847179,1715509874593,-500.0,0.00059178,120]
[326847180,1715509874602,-1131.83,0.00059178,120]
[326847181,1715509874611,-151.0,0.00059178,120]
[326847182,1715509874620,-500.0,0.00059178,120]
[326847183,1715509874631,-583.64,0.00059178,120]
[326847184,1715509874640,-513.88,0.00059178,120]
[326847185,1715509874649,-500.0,0.00059178,120]
[326847186,1715509874658,-500.0,0.00059178,120]
[326847187,1715509874667,-2410.3,0.00059178,120]
[326847188,1715509874677,-5121.64,0.00059178,120]
[326847189,1715509874686,-1457.89,0.00059178,120]
[326847190,1715509874695,-719.29,0.00059178,120]
[326847191,1715509874704,-500.0,0.00059178,120]
[326847192,1715509874713,-1228.7,0.00059178,120]
[326847193,1715509874722,-500.0,0.00059178,120]
[326847194,1715509874731,-500.0,0.00059178,120]
[326847195,1715509874740,-1264.94,0.00059178,120]
[326847196,1715509874749,-1513.78,0.00059178,120]
[326847197,1715509874758,-673.28,0.00059178,120]
[326847198,1715509874768,-258.46958837,0.00059178,120]
[326847199,1715509874777,-519.044299,0.00059178,120]
[326847200,1715509874786,-694.76,0.00059178,120]
[326847201,1715509874795,-1272.39,0.00059178,120]
[326847202,1715509874804,-519.044299,0.00059178,120]
[326847203,1715509874813,-2272.31,0.00059178,120]
[326847204,1715509874822,-500.0,0.00059178,120]
[326847205,1715509874831,-11483.2,0.00059178,120]
[326847206,1715509874841,-500.0,0.00059178,120]
[326847207,1715509874851,-500.0,0.00059178,120]
[326847208,1715509874860,-500.0,0.00059178,7]
[326847209,1715509874869,-606.15,0.00059178,120]
[326847210,1715509874880,-500.0,0.00059178,120]
[326847211,1715509874890,-765.03,0.00059178,120]
[326847212,1715509874899,-287.597217,0.00059178,120]
[326847213,1715509874908,-500.0,0.00059178,120]
[326847214,1715509874917,-500.0,0.00059178,120]
[326847215,1715509874927,-287.597217,0.00059178,120]
[326847216,1715509874935,-500.0,0.00059178,120]
[326847217,1715509874945,-910.45,0.00059178,120]
[326847218,1715509874954,-1594.77,0.00059178,120]
[326847219,1715509874963,-749.73,0.00059178,120]
[326847220,1715509874972,-1094.1,0.00059178,120]
[326847221,1715509874981,-760.68,0.00059178,120]
[326847222,1715509874990,-1439.15,0.00059178,120]
[326847223,1715509874999,-728.36,0.00059178,120]
[326847224,1715509875008,-554.07,0.00059178,120]
[326847225,1715509875017,-509.50234192,0.00059178,120]
[326847226,1715509875026,-851.93,0.00059178,120]
[326847227,1715509875035,-21061.66,0.00059178,120]
[326847228,1715509875044,-500.0,0.00059178,120]
[326847229,1715509875054,-1275.67,0.00059178,120]
[326847230,1715509875063,-500.0,0.00059178,120]
[326847231,1715509875072,-181.189708,0.00059178,2]
[326847232,1715509875082,-697.89,0.00059178,120]
[326847233,1715509875091,-1584.34,0.00059178,120]
[326847234,1715509875184,-1080.54,0.00059178,120]
[326847235,1715509875193,-181.189708,0.00059178,2]
[326847236,1715509875207,-500.0,0.00059178,120]
[326847237,1715509875216,-500.0,0.00059178,120]
[326847238,1715509875225,-285.164937,0.0005938,2]
[326847239,1715509875234,-50000.76,0.0005986,120]
[326847240,1715509875244,-500.0,0.00059999,120]
[326847241,1715509875254,-500.0,0.00059999,120]
[326847242,1715509875263,-500.0,0.00059999,120]
[326847243,1715509875271,-500.0,0.00059999,120]
[326847244,1715509875280,-249.87216248,0.00059999,120]
[326847245,1715509875289,-500.0,0.00059999,120]
[326847246,1715509875298,-500.0,0.00059999,120]
[326847247,1715509875308,-500.0,0.00059999,120]
[326847248,1715509875317,-5000.0,0.0006,46]
[326847249,1715509875326,-160.0,0.0006,60]
[326847250,1715509875335,-1000.0,0.0006,120]
[326847251,1715509875344,-2498.53867206,0.0006,120]
[326847252,1715509875353,-1007.91851021,0.0006,120]
[326847253,1715509875362,-602.24297968,0.0006,120]
[326847254,1715509875371,-200.0,0.0006,2]
[326847255,1715509875381,-1000.0,0.0006,30]
[326847256,1715509875390,-17483.52562334,0.0006,120]
[326847257,1715509875398,-500.0,0.00060273,120]
[326847258,1715509875407,-500.0,0.00060273,120]
[326847259,1715509875416,-500.0,0.00060273,120]
[326847260,1715509875425,-500.0,0.00060273,120]
[326847261,1715509875434,-500.0,0.00060273,120]
[326847262,1715509875442,-500.0,0.00060273,120]
[326847263,1715509875451,-500.0,0.00060273,120]
[326847264,1715509875460,-792.18,0.00060273,120]
[326847265,1715509875468,-700.0,0.00060273,120]
[326847266,1715509875477,-500.0,0.00060273,120]
[326847267,1715509875486,-500.0,0.00060273,120]
[326847268,1715509875495,-500.0,0.00060273,7]
[326847269,1715509875504,-500.0,0.00060273,120]
[326847270,1715509875513,-500.0,0.00060273,120]
[326847271,1715509875522,-500.0,0.00060273,120]
[326847272,1715509875530,-500.0,0.00060273,120]
[326847273,1715509875539,-373.5786124,0.00060273,120]
[326847274,1715509875548,-500.0,0.00060273,120]
[326847275,1715509875557,-687.88,0.00060273,120]
[326847276,1715509875566,-1184.42,0.00060273,120]
[326847277,1715509875575,-622.05,0.00060273,120]
[326847278,1715509875584,-500.0,0.00060273,120]
[326847279,1715509875593,-500.0,0.00060273,120]
[326847280,1715509875603,-500.0,0.00060273,120]
[326847281,1715509875611,-500.0,0.00060273,120]
[326847282,1715509875621,-500.0,0.00060273,120]
[326847283,1715509875631,-500.0,0.00060273,120]
[326847284,1715509875640,-1188.88,0.00060273,120]
[326847285,1715509875649,-664.65,0.00060273,120]
[326847286,1715509875659,-500.0,0.00060273,120]
[326847287,1715509875667,-500.0,0.00060273,2]
[326847288,1715509875676,-500.0,0.00060273,120]
[326847289,1715509875685,-500.0,0.00060273,120]
[326847290,1715509875694,-500.0,0.00060273,120]
[326847291,1715509875703,-500.0,0.00060273,120]
[326847292,1715509875712,-706.45,0.00060273,120]
[326847293,1715509875721,-589.94,0.00060273,120]
[326847294,1715509875730,-500.0,0.00060273,120]
[326847295,1715509875739,-500.0,0.00060273,120]
[326847296,1715509875748,-718.87,0.00060273,120]
[326847297,1715509875758,-668.81,0.00060273,120]
[326847298,1715509875767,-500.0,0.00060273,120]
[326847299,1715509875777,-1198.11,0.00060273,120]
[326847300,1715509875786,-500.0,0.00060273,120]
[326847301,1715509875795,-500.0,0.00060273,120]
[326847302,1715509875805,-859.74,0.00060273,120]
[326847303,1715509875814,-500.0,0.00060273,120]
[326847304,1715509875823,-1019.78,0.00060273,120]
[326847305,1715509875832,-500.0,0.00060273,120]
[326847306,1715509875841,-500.0,0.00060273,120]
[326847307,1715509875850,-500.0,0.00060273,120]
[326847308,1715509875860,-500.0,0.00060273,120]
[326847309,1715509875869,-1222.61,0.00060273,120]
[326847310,1715509875879,-500.0,0.00060273,120]
[326847311,1715509875887,-1076.09,0.00060273,4]
[326847312,1715509875897,-500.0,0.00060273,120]
[326847313,1715509875905,-500.0,0.00060273,120]
[326847314,1715509875914,-777.18,0.00060273,120]
[326847315,1715509875923,-500.0,0.00060273,120]
[326847316,1715509875932,-500.0,0.00060273,120]
[326847317,1715509875942,-623.85,0.00060273,120]
[326847318,1715509875951,-879.42,0.00060273,120]
[326847319,1715509875961,-500.0,0.00060273,120]
[326847320,1715509875970,-300.0,0.00060273,7]
[326847321,1715509875979,-500.0,0.00060273,120]
[326847322,1715509875988,-500.0,0.00060273,120]
[326847323,1715509875997,-500.0,0.00060273,120]
[326847324,1715509876006,-500.0,0.00060273,120]
[326847325,1715509876015,-1022.56,0.00060273,120]
[326847326,1715509876024,-500.0,0.00060273,120]
[326847327,1715509876034,-500.0,0.00060273,120]
[326847328,1715509876043,-500.0,0.00060273,120]
[326847329,1715509876052,-1415.7,0.00060273,120]
[326847330,1715509876062,-676.96,0.00060273,120]
[326847331,1715509876071,-702.94,0.00060273,120]
[326847332,1715509876080,-1146.59,0.00060273,120]
[326847333,1715509876089,-846.45,0.00060273,120]
[326847334,1715509876098,-478.56692088,0.00060273,120]
[326847335,1715509876108,-500.0,0.00060273,120]
[326847336,1715509876117,-263.12742385,0.00060273,120]
[326847337,1715509876126,-500.0,0.00060273,120]
[326847338,1715509876135,-506.08,0.00060273,120]
[326847339,1715509876144,-694.21,0.00060273,120]
[326847340,1715509876153,-547.81771689,0.00060273,120]
[326847341,1715509876162,-534.57,0.00060273,120]
[326847342,1715509876172,-628.13,0.00060273,120]
[326847343,1715509876182,-500.0,0.00060273,120]
[326847344,1715509876195,-206.38125492,0.00060273,120]
[326847345,1715509876205,-500.0,0.00060273,120]
[326847346,1715509876214,-563.98,0.00060273,120]
[326847347,1715509876223,-500.0,0.00060273,120]
[326847348,1715509876233,-500.0,0.00060273,120]
[326847349,1715509876242,-624.43584481,0.00060273,120]
[326847350,1715509876251,-500.0,0.00060273,120]
[326847351,1715509876260,-555.94366693,0.00060273,120]
[326847352,1715509876270,-1333.29,0.00060273,120]
[326847353,1715509876280,-161.06511444,0.00060273,7]
[326847354,1715509876290,-500.0,0.00060273,120]
[326847355,1715509876299,-2080.97,0.00060273,120]
[326847356,1715509876308,-511.80081231,0.00060273,120]
[326847357,1715509876317,-500.0,0.00060273,120]
[326847358,1715509876326,-697.5,0.00060273,120]
[326847359,1715509876335,-500.0,0.00060273,120]
[326847360,1715509876344,-500.0,0.00060273,120]
[326847361,1715509876353,-1146.84,0.00060273,120]
[326847362,1715509876363,-500.0,0.00060273,120]
[326847363,1715509876373,-151.0,0.00060273,120]
[326847364,1715509876383,-500.0,0.00060273,120]
[326847365,1715509876392,-500.0,0.00060273,120]
[326847366,1715509876400,-500.0,0.00060273,120]
[326847367,1715509876409,-500.0,0.00060273,120]
[326847368,1715509876418,-1062.31,0.00060273,120]
[326847369,1715509876427,-887.25,0.00060273,120]
[326847370,1715509876515,-345.23069084,0.00060273,120]
[326847371,1715509876525,-500.0,0.00060273,120]
[326847372,1715509876534,-884.99,0.00060273,120]
[326847373,1715509876543,-1945.84,0.00060273,120]
[326847374,1715509876553,-1101.29,0.00060273,120]
[326847375,1715509876562,-683.11,0.00060273,120]
[326847376,1715509876571,-490.45557147,0.00060273,120]
[326847377,1715509876581,-500.0,0.00060273,120]
[326847378,1715509876590,-500.0,0.00060273,120]
[326847379,1715509876600,-500.0,0.00060273,120]
[326847380,1715509876610,-500.0,0.00060273,120]
[326847381,1715509876619,-634.75,0.00060273,120]
[326847382,1715509876630,-500.0,0.00060273,120]
[326847383,1715509876639,-500.0,0.00060273,120]
[326847384,1715509876648,-1202.07,0.00060273,120]
[326847385,1715509876657,-500.0,0.00060273,2]
[326847386,1715509876667,-500.0,0.00060273,120]
[326847387,1715509876677,-540.39841108,0.00060273,120]
[326847388,1715509876687,-652.77,0.00060273,120]
[326847389,1715509876696,-665.8,0.00060273,120]
[326847390,1715509876706,-500.0,0.00060273,30]
[326847391,1715509876716,-2405.12,0.00060273,120]
[326847392,1715509876726,-1296.67,0.00060273,120]
[326847393,1715509876736,-500.0,0.00060273,120]
[326847394,1715509876745,-500.0,0.00060273,120]
[326847395,1715509876754,-515.15,0.00060273,120]
[326847396,1715509876763,-1711.77,0.00060273,120]
[326847397,1715509876773,-500.0,0.00060273,120]
[326847398,1715509876782,-500.0,0.00060273,120]
[326847399,1715509876792,-634.68,0.00060273,120]
[326847400,1715509876801,-674.93,0.00060273,120]
[326847401,1715509876810,-500.0,0.00060273,120]
[326847402,1715509876819,-500.0,0.00060273,120]
[326847403,1715509876828,-669.18,0.00060273,120]
[326847404,1715509876838,-662.7,0.00060273,120]
[326847405,1715509876847,-672.84,0.00060273,120]
[326847406,1715509876857,-500.0,0.00060273,120]
[326847407,1715509876866,-500.0,0.00060273,120]
[326847408,1715509876875,-500.0,0.00060273,120]
[326847409,1715509876885,-500.0,0.00060273,120]
[326847410,1715509876894,-500.0,0.00060273,120]
[326847411,1715509876903,-500.0,0.00060273,120]
[326847412,1715509876912,-597.94612031,0.00060273,120]
[326847413,1715509876921,-500.0,0.00060273,120]
[326847414,1715509876931,-500.0,0.00060273,120]
[326847415,1715509876940,-500.0,0.00060273,120]
[326847416,1715509876950,-1082.38,0.00060273,120]
[326847417,1715509876958,-500.0,0.00060273,120]
[326847418,1715509876968,-2510.37,0.00060273,120]
[326847419,1715509876977,-168.472602,0.00060273,120]
[326847420,1715509876986,-168.472602,0.00060273,120]
[326847421,1715509876996,-4167.16,0.00060273,120]
[326847422,1715509877005,-1216.89,0.00060273,7]
[326847423,1715509877015,-568.37,0.00060273,120]
[326847424,1715509877024,-500.0,0.00060273,120]
[326847425,1715509877033,-500.0,0.00060273,120]
[326847426,1715509877042,-500.0,0.00060273,120]
[326847427,1715509877051,-500.0,0.00060273,120]
[326847428,1715509877061,-634.17,0.00060273,120]
[326847429,1715509877070,-711.19,0.00060273,120]
[326847430,1715509877079,-645.64,0.00060273,120]
[326847431,1715509877088,-634.59,0.00060273,120]
[326847432,1715509877104,-522.61,0.00060273,120]
[326847433,1715509877122,-1199.73,0.00060273,120]
[326847434,1715509877138,-852.85,0.00060273,120]
[326847435,1715509877158,-500.0,0.00060273,120]
[326847436,1715509877177,-500.0,0.00060273,120]
[326847437,1715509877195,-625.2,0.00060273,120]
[326847438,1715509877213,-500.0,0.00060273,120]
[326847439,1715509877228,-500.0,0.00060273,120]
[326847440,1715509877244,-500.0,0.00060273,120]
[326847441,1715509877262,-500.0,0.00060273,120]
[326847442,1715509877280,-500.0,0.00060273,120]
[326847443,1715509877292,-540.97232174,0.00060273,120]
[326847444,1715509877311,-500.0,0.00060273,120]
[326847445,1715509877325,-500.0,0.00060273,120]
[326847446,1715509877340,-728.74,0.00060273,120]
[326847447,1715509877353,-501.04,0.00060273,120]
[326847448,1715509877368,-588.33,0.00060273,120]
[326847449,1715509877381,-500.0,0.00060273,120]
[326847450,1715509877396,-500.0,0.00060273,120]
[326847451,1715509877410,-1576.44,0.00060273,120]
[326847452,1715509877425,-500.0,0.00060273,120]
[326847453,1715509877439,-500.0,0.00060273,120]
[326847454,1715509877453,-500.0,0.00060273,120]
[326847455,1715509877467,-500.0,0.00060273,120]
[326847456,1715509877481,-642.78,0.00060273,120]
[326847457,1715509877495,-500.0,0.00060273,120]
[326847458,1715509877509,-1474.83,0.00060273,120]
[326847459,1715509877523,-500.0,0.00060273,120]
[326847460,1715509877537,-500.0,0.00060273,120]
[326847461,1715509877551,-500.0,0.00060273,120]
[326847462,1715509877565,-500.0,0.00060273,120]
[326847463,1715509877580,-1138.94,0.00060273,120]
[326847464,1715509877594,-500.0,0.00060273,120]
[326847465,1715509877609,-2052.53,0.00060273,120]
[326847466,1715509877624,-500.0,0.00060273,120]
[326847467,1715509877638,-3343.91,0.00060273,120]
[326847468,1715509877652,-500.0,0.00060273,120]
[326847469,1715509877667,-1280.34,0.00060273,120]
[326847470,1715509877682,-589.15,0.00060273,120]
[326847471,1715509877696,-990.89,0.00060273,120]
[326847472,1715509877710,-1022.63,0.00060273,120]
[326847473,1715509877725,-1377.96,0.00060273,120]
[326847474,1715509877738,-500.0,0.00060273,120]
[326847475,1715509877752,-849.72,0.00060273,120]
[326847476,1715509877766,-151.0,0.00060273,120]
[326847477,1715509877779,-500.0,0.00060273,120]
[326847478,1715509877793,-500.0,0.00060273,120]
[326847479,1715509877806,-500.0,0.00060273,120]
[326847480,1715509877820,-2169.41,0.00060273,120]
[326847481,1715509877835,-658.6,0.00060273,120]
[326847482,1715509877850,-926.02,0.00060273,120]
[326847483,1715509877868,-607.30934771,0.00060273,120]
[326847484,1715509877882,-2031.16,0.00060273,120]
[326847485,1715509877896,-500.0,0.00060273,120]
[326847486,1715509877911,-1300.61,0.00060273,120]
[326847487,1715509877925,-4158.51,0.00060273,120]
[326847488,1715509877939,-500.0,0.00060273,120]
[326847489,1715509877953,-503.96068993,0.00060273,120]
[326847490,1715509877968,-1707.07,0.00060273,120]
[326847491,1715509877983,-747.04,0.00060273,120]
[326847492,1715509877997,-500.0,0.00060273,120]
[326847493,1715509878011,-610.04,0.00060273,120]
[326847494,1715509878025,-511.92750749,0.00060273,120]
[326847495,1715509878142,-616.93,0.00060273,120]
[326847496,1715509878165,-555.14,0.00060273,120]
[326847497,1715509878175,-500.0,0.00060273,120]
[326847498,1715509878185,-500.0,0.00060273,120]
[326847499,1715509878195,-663.17,0.00060273,60]
[326847500,1715509878206,-1965.65,0.00060273,120]
[326847501,1715509878215,-500.0,0.00060273,120]
[326847502,1715509878225,-500.0,0.00060273,120]
[326847503,1715509878235,-1720.11,0.00060273,120]
[326847504,1715509878245,-500.0,0.00060273,120]
[326847505,1715509878254,-1258.86,0.00060273,7]
[326847506,1715509878264,-500.0,0.00060273,120]
[326847507,1715509878275,-531.16,0.00060273,120]
[326847508,1715509878287,-500.0,0.00060273,120]
[326847509,1715509878296,-269.54842707,0.00060273,120]
[326847510,1715509878306,-500.0,0.00060273,120]
[326847511,1715509878315,-1275.8,0.00060273,120]
[326847512,1715509878324,-1330.34,0.00060273,120]
[326847513,1715509878333,-369.85973695,0.00060273,120]
[326847514,1715509878343,-1477.44,0.00060273,120]
[326847515,1715509878352,-500.0,0.00060273,120]
[326847516,1715509878361,-500.0,0.00060273,120]
[326847517,1715509878370,-500.0,0.00060273,120]
[326847518,1715509878380,-500.0,0.00060273,120]
[326847519,1715509878389,-500.0,0.00060273,120]
[326847520,1715509878398,-1415.41,0.00060273,120]